[Event "Titled Tuesday Blitz August 08 Late 2023"]
[White "Alex_Sahakyan2006"]
[Black "Kozusek, Daniel"]
[BlackFideId "349500"]
[WhiteElo "2713"]
[BlackElo "2542"]
[Result "0-1"]
[Round "11"]
[TimeControl "180+1"]
[Date "2023.08.08"]
[WhiteClock "0:02:31"]
[BlackClock "0:02:16"]
[Board "29"]

1. d4 {[%clk 0:03:00]}  d5 {[%clk 0:02:56]} 2. c4 {[%clk 0:03:00]}  e6 {[%clk 0:02:56]} 3. Nc3 {[%clk 0:02:57]}  Bb4 {[%clk 0:02:56]} 4. Nf3 {[%clk 0:02:56]}  dxc4 {[%clk 0:02:56]} 5. Qa4+ {[%clk 0:02:54]}  Nc6 {[%clk 0:02:56]} 6. e3 {[%clk 0:02:55]}  Bd7 {[%clk 0:02:56]} 7. Qc2 {[%clk 0:02:53]}  b5 {[%clk 0:02:57]} 8. Bd2 {[%clk 0:02:52]}  a6 {[%clk 0:02:55]} 9. a4 {[%clk 0:02:50]}  Rb8 {[%clk 0:02:38]} 10. g4 {[%clk 0:02:47]}  Nf6 {[%clk 0:02:36]} 11. g5 {[%clk 0:02:48]}  Nd5 {[%clk 0:02:36]} 12. Rg1 {[%clk 0:02:47]}  Be7 {[%clk 0:02:24]} 13. axb5 {[%clk 0:02:40]}  axb5 {[%clk 0:02:23]} 14. Ne4 {[%clk 0:02:40]}  Ncb4 {[%clk 0:02:18]} 15. Qb1 {[%clk 0:02:40]}  Ra8 {[%clk 0:02:17]} 16. Nc5 {[%clk 0:02:33]}  Rxa1 {[%clk 0:02:16]} 17. Qxa1 {[%clk 0:02:31]}  Nc2+ {[%clk 0:02:16]} 0-1


[Site "https://www.chess.com"]

[Event "Titled Tuesday Blitz August 08 Late 2023"]
[White "ATM622"]
[Black "Prohaszka, Peter"]
[BlackFideId "726265"]
[WhiteElo "2533"]
[BlackElo "2707"]
[Result "0-1"]
[Round "11"]
[TimeControl "180+1"]
[Date "2023.08.08"]
[WhiteClock "0:01:59"]
[BlackClock "0:02:16"]
[Board "30"]

1. d4 {[%clk 0:02:51]}  d5 {[%clk 0:02:57]} 2. c4 {[%clk 0:02:51]}  e6 {[%clk 0:02:58]} 3. Nf3 {[%clk 0:02:51]}  Nf6 {[%clk 0:02:58]} 4. g3 {[%clk 0:02:51]}  Be7 {[%clk 0:02:59]} 5. Bg2 {[%clk 0:02:51]}  O-O {[%clk 0:03:00]} 6. O-O {[%clk 0:02:52]}  c6 {[%clk 0:03:01]} 7. Nbd2 {[%clk 0:02:52]}  b6 {[%clk 0:03:01]} 8. Qc2 {[%clk 0:02:52]}  Bb7 {[%clk 0:03:02]} 9. e4 {[%clk 0:02:53]}  Na6 {[%clk 0:03:03]} 10. e5 {[%clk 0:02:52]}  Nd7 {[%clk 0:03:03]} 11. b3 {[%clk 0:02:51]}  Rc8 {[%clk 0:03:01]} 12. Bb2 {[%clk 0:02:51]}  c5 {[%clk 0:03:02]} 13. Rac1 {[%clk 0:02:50]}  dxc4 {[%clk 0:02:50]} 14. Ng5 {[%clk 0:02:48]}  Bxg5 {[%clk 0:02:46]} 15. Bxb7 {[%clk 0:02:47]}  Nb4 {[%clk 0:02:47]} 16. Qd1 {[%clk 0:02:30]}  Rc7 {[%clk 0:02:47]} 17. Bg2 {[%clk 0:02:25]}  Nd3 {[%clk 0:02:36]} 18. Nxc4 {[%clk 0:02:11]}  Nxb2 {[%clk 0:02:32]} 19. Nxb2 {[%clk 0:02:10]}  Bxc1 {[%clk 0:02:32]} 20. Qxc1 {[%clk 0:02:11]}  cxd4 {[%clk 0:02:32]} 21. Qd2 {[%clk 0:02:11]}  Nxe5 {[%clk 0:02:32]} 22. f4 {[%clk 0:02:09]}  Ng4 {[%clk 0:02:31]} 23. Nc4 {[%clk 0:02:06]}  b5 {[%clk 0:02:27]} 24. Na3 {[%clk 0:02:04]}  a6 {[%clk 0:02:23]} 25. Rd1 {[%clk 0:02:00]}  Ne3 {[%clk 0:02:23]} 26. Re1 {[%clk 0:02:00]}  Nxg2 {[%clk 0:02:22]} 27. Kxg2 {[%clk 0:02:01]}  Qd5+ {[%clk 0:02:22]} 28. Kg1 {[%clk 0:01:59]}  d3 {[%clk 0:02:16]} 0-1


[Site "https://www.chess.com"]

[Event "Titled Tuesday Blitz August 08 Late 2023"]
[White "Hristodoulou, Panagiotis"]
[Black "Pantev, Veselin"]
[WhiteFideId "4214340"]
[BlackFideId "2901390"]
[WhiteElo "2512"]
[BlackElo "2620"]
[Result "0-1"]
[Round "11"]
[TimeControl "180+1"]
[Date "2023.08.08"]
[WhiteClock "0:00:04"]
[BlackClock "0:01:00"]
[Board "34"]

1. d4 {[%clk 0:02:56]}  Nf6 {[%clk 0:02:59]} 2. Nc3 {[%clk 0:02:56]}  d5 {[%clk 0:02:59]} 3. Bf4 {[%clk 0:02:56]}  c6 {[%clk 0:02:58]} 4. e3 {[%clk 0:02:53]}  Bf5 {[%clk 0:02:58]} 5. Nf3 {[%clk 0:02:53]}  Nbd7 {[%clk 0:02:58]} 6. Bd3 {[%clk 0:02:52]}  Bg6 {[%clk 0:02:58]} 7. O-O {[%clk 0:02:52]}  e6 {[%clk 0:02:57]} 8. Ne5 {[%clk 0:02:48]}  Nxe5 {[%clk 0:02:57]} 9. Bxe5 {[%clk 0:02:49]}  Nd7 {[%clk 0:02:54]} 10. Bg3 {[%clk 0:02:47]}  Be7 {[%clk 0:02:52]} 11. e4 {[%clk 0:02:44]}  dxe4 {[%clk 0:02:52]} 12. Nxe4 {[%clk 0:02:35]}  Nf6 {[%clk 0:02:51]} 13. Nxf6+ {[%clk 0:02:30]}  Bxf6 {[%clk 0:02:49]} 14. Bxg6 {[%clk 0:02:24]}  hxg6 {[%clk 0:02:49]} 15. c3 {[%clk 0:02:25]}  Qb6 {[%clk 0:02:26]} 16. Qb3 {[%clk 0:02:25]}  O-O {[%clk 0:02:26]} 17. Rfe1 {[%clk 0:02:22]}  Rac8 {[%clk 0:02:24]} 18. Be5 {[%clk 0:02:08]}  Rfd8 {[%clk 0:02:23]} 19. h3 {[%clk 0:01:56]}  Rd5 {[%clk 0:02:23]} 20. Bf4 {[%clk 0:01:47]}  Rb5 {[%clk 0:02:22]} 21. Qc4 {[%clk 0:01:45]}  Rxb2 {[%clk 0:02:20]} 22. a4 {[%clk 0:01:40]}  Qb3 {[%clk 0:02:08]} 23. Qd3 {[%clk 0:01:32]}  Qc2 {[%clk 0:02:01]} 24. Qf3 {[%clk 0:01:18]}  Qf5 {[%clk 0:01:51]} 25. g4 {[%clk 0:01:07]}  Qd5 {[%clk 0:01:51]} 26. Qd3 {[%clk 0:01:08]}  c5 {[%clk 0:01:44]} 27. Be5 {[%clk 0:00:28]}  cxd4 {[%clk 0:01:37]} 28. cxd4 {[%clk 0:00:20]}  Rb3 {[%clk 0:01:32]} 29. Qf1 {[%clk 0:00:20]}  Bh4 {[%clk 0:01:23]} 30. Rac1 {[%clk 0:00:19]}  Rbc3 {[%clk 0:01:20]} 31. Rxc3 {[%clk 0:00:17]}  Rxc3 {[%clk 0:01:20]} 32. Qb5 {[%clk 0:00:11]}  Rxh3 {[%clk 0:01:16]} 33. Qxd5 {[%clk 0:00:09]}  exd5 {[%clk 0:01:15]} 34. Rb1 {[%clk 0:00:10]}  b6 {[%clk 0:01:14]} 35. a5 {[%clk 0:00:09]}  Bd8 {[%clk 0:01:08]} 36. axb6 {[%clk 0:00:06]}  Bxb6 {[%clk 0:01:06]} 37. Rb5 {[%clk 0:00:07]}  Rd3 {[%clk 0:01:02]} 38. Rxd5 {[%clk 0:00:06]}  f6 {[%clk 0:01:02]} 39. Rd7 {[%clk 0:00:04]}  fxe5 {[%clk 0:01:00]} 0-1


[Site "https://www.chess.com"]

[Event "Titled Tuesday Blitz August 08 Late 2023"]
[White "Musovic, Armin"]
[Black "Sadilek, Peter"]
[WhiteFideId "939935"]
[BlackFideId "1616439"]
[WhiteElo "2591"]
[BlackElo "2498"]
[Result "0-1"]
[Round "11"]
[TimeControl "180+1"]
[Date "2023.08.08"]
[WhiteClock "0:00:15"]
[BlackClock "0:00:31"]
[Board "35"]

1. a3 {[%clk 0:02:57]}  g6 {[%clk 0:02:59]} 2. Nc3 {[%clk 0:02:55]}  Bg7 {[%clk 0:02:59]} 3. e4 {[%clk 0:02:55]}  d6 {[%clk 0:02:55]} 4. d4 {[%clk 0:02:55]}  Nf6 {[%clk 0:02:55]} 5. Bg5 {[%clk 0:02:55]}  c6 {[%clk 0:02:53]} 6. f4 {[%clk 0:02:55]}  O-O {[%clk 0:02:39]} 7. Nf3 {[%clk 0:02:52]}  d5 {[%clk 0:02:38]} 8. e5 {[%clk 0:02:40]}  Ne4 {[%clk 0:02:38]} 9. Bh4 {[%clk 0:02:39]}  c5 {[%clk 0:02:29]} 10. Bd3 {[%clk 0:02:33]}  Nxc3 {[%clk 0:02:27]} 11. bxc3 {[%clk 0:02:33]}  c4 {[%clk 0:02:25]} 12. Be2 {[%clk 0:02:33]}  Nc6 {[%clk 0:02:26]} 13. h3 {[%clk 0:02:32]}  Qa5 {[%clk 0:02:26]} 14. Qd2 {[%clk 0:02:30]}  f6 {[%clk 0:02:25]} 15. O-O {[%clk 0:02:29]}  fxe5 {[%clk 0:02:22]} 16. Nxe5 {[%clk 0:02:22]}  Qc7 {[%clk 0:02:13]} 17. Rae1 {[%clk 0:01:59]}  Nxe5 {[%clk 0:02:07]} 18. fxe5 {[%clk 0:01:58]}  Be6 {[%clk 0:02:07]} 19. Qg5 {[%clk 0:01:53]}  Rae8 {[%clk 0:01:58]} 20. Bg4 {[%clk 0:01:49]}  Qd7 {[%clk 0:01:56]} 21. Bd1 {[%clk 0:01:33]}  Bf5 {[%clk 0:01:46]} 22. Qc1 {[%clk 0:01:25]}  h6 {[%clk 0:01:20]} 23. Qe3 {[%clk 0:01:08]}  Qe6 {[%clk 0:01:11]} 24. Rf2 {[%clk 0:00:58]}  g5 {[%clk 0:01:10]} 25. Bg3 {[%clk 0:00:58]}  Be4 {[%clk 0:01:10]} 26. Ref1 {[%clk 0:00:53]}  Qg6 {[%clk 0:01:08]} 27. Bg4 {[%clk 0:00:41]}  e6 {[%clk 0:00:56]} 28. Qe2 {[%clk 0:00:38]}  Rxf2 {[%clk 0:00:55]} 29. Rxf2 {[%clk 0:00:39]}  Rf8 {[%clk 0:00:55]} 30. Bh5 {[%clk 0:00:39]}  Qh7 {[%clk 0:00:53]} 31. Rxf8+ {[%clk 0:00:38]}  Bxf8 {[%clk 0:00:54]} 32. Qg4 {[%clk 0:00:26]}  Qf5 {[%clk 0:00:52]} 33. Qd1 {[%clk 0:00:19]}  Bxc2 {[%clk 0:00:49]} 34. Qa1 {[%clk 0:00:19]}  Qd3 {[%clk 0:00:43]} 35. Kh2 {[%clk 0:00:18]}  Qe3 {[%clk 0:00:32]} 36. Qb1 {[%clk 0:00:16]}  Bxb1 {[%clk 0:00:32]} 37. Bf7+ {[%clk 0:00:15]}  Kxf7 {[%clk 0:00:31]} 0-1


[Site "https://www.chess.com"]

[Event "Titled Tuesday Blitz August 08 Late 2023"]
[White "Ambartsumova, Karina"]
[Black "Cheer_Down"]
[WhiteFideId "4166299"]
[WhiteElo "2590"]
[BlackElo "2497"]
[Result "1-0"]
[Round "11"]
[TimeControl "180+1"]
[Date "2023.08.08"]
[WhiteClock "0:02:54"]
[BlackClock "0:02:44"]
[Board "36"]

1. d4 {[%clk 0:03:00]}  d5 {[%clk 0:02:54]} 2. c4 {[%clk 0:02:59]}  e6 {[%clk 0:02:54]} 3. Nc3 {[%clk 0:02:59]}  Nf6 {[%clk 0:02:53]} 4. cxd5 {[%clk 0:02:59]}  exd5 {[%clk 0:02:52]} 5. Bg5 {[%clk 0:02:59]}  c6 {[%clk 0:02:51]} 6. e3 {[%clk 0:02:59]}  Be7 {[%clk 0:02:52]} 7. Bd3 {[%clk 0:02:58]}  h6 {[%clk 0:02:51]} 8. Bh4 {[%clk 0:02:58]}  Nh5 {[%clk 0:02:51]} 9. Bxe7 {[%clk 0:02:57]}  Qxe7 {[%clk 0:02:52]} 10. Qxh5 {[%clk 0:02:57]}  Qb4 {[%clk 0:02:44]} 11. Qe2 {[%clk 0:02:54]} 1-0


[Site "https://www.chess.com"]

[Event "Titled Tuesday Blitz August 08 Late 2023"]
[White "Deng, Henry"]
[Black "Kubatko, Ivan"]
[WhiteFideId "30965454"]
[BlackFideId "24111473"]
[WhiteElo "2580"]
[BlackElo "2478"]
[Result "1-0"]
[Round "11"]
[TimeControl "180+1"]
[Date "2023.08.08"]
[WhiteClock "0:01:16"]
[BlackClock "0:00:00"]
[Board "37"]

1. e4 {[%clk 0:03:00]}  d5 {[%clk 0:02:58]} 2. exd5 {[%clk 0:02:58]}  Qxd5 {[%clk 0:02:57]} 3. Nc3 {[%clk 0:02:57]}  Qa5 {[%clk 0:02:57]} 4. g3 {[%clk 0:02:55]}  Nf6 {[%clk 0:02:55]} 5. Bg2 {[%clk 0:02:56]}  Nc6 {[%clk 0:02:55]} 6. Nge2 {[%clk 0:02:56]}  h5 {[%clk 0:02:53]} 7. h3 {[%clk 0:02:53]}  h4 {[%clk 0:02:53]} 8. g4 {[%clk 0:02:54]}  e5 {[%clk 0:02:52]} 9. d3 {[%clk 0:02:53]}  Be6 {[%clk 0:02:51]} 10. Bd2 {[%clk 0:02:54]}  O-O-O {[%clk 0:02:50]} 11. O-O {[%clk 0:02:51]}  Qa6 {[%clk 0:02:49]} 12. a3 {[%clk 0:02:49]}  Nd4 {[%clk 0:02:47]} 13. b4 {[%clk 0:02:48]}  Be7 {[%clk 0:02:43]} 14. Nxd4 {[%clk 0:02:43]}  exd4 {[%clk 0:02:36]} 15. Ne2 {[%clk 0:02:43]}  Bd5 {[%clk 0:02:33]} 16. f3 {[%clk 0:02:34]}  Bd6 {[%clk 0:02:25]} 17. a4 {[%clk 0:02:33]}  Bg3 {[%clk 0:02:22]} 18. b5 {[%clk 0:02:30]}  Qd6 {[%clk 0:02:20]} 19. Rb1 {[%clk 0:02:25]}  Rhe8 {[%clk 0:02:19]} 20. Nxg3 {[%clk 0:02:18]}  Qxg3 {[%clk 0:02:16]} 21. Be1 {[%clk 0:02:17]}  Qf4 {[%clk 0:02:08]} 22. Bf2 {[%clk 0:02:13]}  Nh7 {[%clk 0:01:30]} 23. Rb4 {[%clk 0:02:10]}  Re3 {[%clk 0:01:25]} 24. Bxe3 {[%clk 0:01:52]}  Qxe3+ {[%clk 0:01:23]} 25. Kh1 {[%clk 0:01:53]}  Ng5 {[%clk 0:00:48]} 26. Re1 {[%clk 0:01:41]}  Qf2 {[%clk 0:00:32]} 27. Re2 {[%clk 0:01:34]}  Qg3 {[%clk 0:00:28]} 28. Qe1 {[%clk 0:01:34]}  Qf4 {[%clk 0:00:22]} 29. Qf2 {[%clk 0:01:25]}  Ne6 {[%clk 0:00:15]} 30. Rb1 {[%clk 0:01:22]}  Ng5 {[%clk 0:00:14]} 31. Rf1 {[%clk 0:01:21]}  f5 {[%clk 0:00:12]} 32. a5 {[%clk 0:01:18]}  fxg4 {[%clk 0:00:12]} 33. fxg4 {[%clk 0:01:18]}  Qd6 {[%clk 0:00:11]} 34. Qf4 {[%clk 0:01:17]}  Nxh3 {[%clk 0:00:08]} 35. Qxd6 {[%clk 0:01:16]}  Rxd6 {[%clk 0:00:08]} 36. Bxd5 {[%clk 0:01:16]}  Rxd5 {[%clk 0:00:09]} 37. Re7 {[%clk 0:01:16]}  Kd8 {[%clk 0:00:00]} 38. Rxg7 {[%clk 0:01:16]} 1-0


[Site "https://www.chess.com"]

[Event "Titled Tuesday Blitz August 08 Late 2023"]
[White "Dwilewicz, Katarzyna"]
[Black "Przybylski, Wojciech"]
[WhiteFideId "1148486"]
[BlackFideId "1117599"]
[WhiteElo "2407"]
[BlackElo "2573"]
[Result "0-1"]
[Round "11"]
[TimeControl "180+1"]
[Date "2023.08.08"]
[WhiteClock "0:00:01"]
[BlackClock "0:00:08"]
[Board "38"]

1. e4 {[%clk 0:03:00]}  e5 {[%clk 0:02:58]} 2. Nf3 {[%clk 0:03:00]}  Nf6 {[%clk 0:02:58]} 3. Nc3 {[%clk 0:02:59]}  Bb4 {[%clk 0:02:57]} 4. Nxe5 {[%clk 0:02:58]}  O-O {[%clk 0:02:57]} 5. Nd3 {[%clk 0:02:59]}  Bxc3 {[%clk 0:02:56]} 6. dxc3 {[%clk 0:03:00]}  Nxe4 {[%clk 0:02:57]} 7. Nf4 {[%clk 0:03:00]}  c6 {[%clk 0:02:56]} 8. Be2 {[%clk 0:03:00]}  d5 {[%clk 0:02:56]} 9. O-O {[%clk 0:03:00]}  Nd7 {[%clk 0:02:55]} 10. c4 {[%clk 0:02:57]}  dxc4 {[%clk 0:02:52]} 11. Bxc4 {[%clk 0:02:56]}  Ne5 {[%clk 0:02:43]} 12. Qxd8 {[%clk 0:02:40]}  Rxd8 {[%clk 0:02:42]} 13. Be2 {[%clk 0:02:40]}  Bf5 {[%clk 0:02:39]} 14. Nd3 {[%clk 0:02:35]}  Nc4 {[%clk 0:02:31]} 15. Rd1 {[%clk 0:02:28]}  Rd7 {[%clk 0:02:20]} 16. f3 {[%clk 0:02:28]}  Nf6 {[%clk 0:02:12]} 17. b3 {[%clk 0:02:26]}  Nb6 {[%clk 0:02:05]} 18. Bb2 {[%clk 0:02:24]}  Re8 {[%clk 0:02:02]} 19. Kf2 {[%clk 0:02:20]}  Rde7 {[%clk 0:01:56]} 20. Bf1 {[%clk 0:02:16]}  Nfd5 {[%clk 0:01:53]} 21. Re1 {[%clk 0:02:08]}  Ne3 {[%clk 0:01:47]} 22. Ba3 {[%clk 0:01:53]}  Re6 {[%clk 0:01:34]} 23. Nf4 {[%clk 0:01:42]}  Nxc2 {[%clk 0:01:14]} 24. Nxe6 {[%clk 0:01:33]}  Nxa1 {[%clk 0:01:10]} 25. Rxa1 {[%clk 0:01:25]}  Bxe6 {[%clk 0:01:08]} 26. Rd1 {[%clk 0:01:22]}  Nd5 {[%clk 0:00:59]} 27. g3 {[%clk 0:01:13]}  f6 {[%clk 0:00:57]} 28. Bb2 {[%clk 0:01:10]}  Kf7 {[%clk 0:00:57]} 29. Bd3 {[%clk 0:01:10]}  g6 {[%clk 0:00:57]} 30. f4 {[%clk 0:01:11]}  Bf5 {[%clk 0:00:27]} 31. Bc4 {[%clk 0:00:58]}  Be4 {[%clk 0:00:27]} 32. h4 {[%clk 0:00:52]}  h5 {[%clk 0:00:26]} 33. Bd4 {[%clk 0:00:46]}  b6 {[%clk 0:00:25]} 34. a4 {[%clk 0:00:45]}  Re7 {[%clk 0:00:22]} 35. Ra1 {[%clk 0:00:40]}  Ke6 {[%clk 0:00:17]} 36. a5 {[%clk 0:00:39]}  b5 {[%clk 0:00:16]} 37. Bf1 {[%clk 0:00:38]}  a6 {[%clk 0:00:14]} 38. Rc1 {[%clk 0:00:38]}  Kd7 {[%clk 0:00:13]} 39. Rd1 {[%clk 0:00:27]}  f5 {[%clk 0:00:12]} 40. Bc5 {[%clk 0:00:24]}  Re8 {[%clk 0:00:12]} 41. Rd2 {[%clk 0:00:21]}  Kc7 {[%clk 0:00:12]} 42. Bd4 {[%clk 0:00:20]}  Kd6 {[%clk 0:00:12]} 43. Be5+ {[%clk 0:00:19]}  Kd7 {[%clk 0:00:12]} 44. Bd4 {[%clk 0:00:19]}  Re6 {[%clk 0:00:12]} 45. Be5 {[%clk 0:00:19]}  Re7 {[%clk 0:00:13]} 46. Bd4 {[%clk 0:00:20]}  Rf7 {[%clk 0:00:13]} 47. Be5 {[%clk 0:00:20]}  Rf8 {[%clk 0:00:14]} 48. Rd1 {[%clk 0:00:20]}  Rd8 {[%clk 0:00:14]} 49. Rd2 {[%clk 0:00:19]}  Rc8 {[%clk 0:00:14]} 50. Bd4 {[%clk 0:00:18]}  c5 {[%clk 0:00:14]} 51. Be5 {[%clk 0:00:18]}  Ke6 {[%clk 0:00:14]} 52. Ke1 {[%clk 0:00:09]}  Rc6 {[%clk 0:00:14]} 53. Kd1 {[%clk 0:00:09]}  c4 {[%clk 0:00:14]} 54. bxc4 {[%clk 0:00:09]}  bxc4 {[%clk 0:00:14]} 55. Rb2 {[%clk 0:00:09]}  c3 {[%clk 0:00:14]} 56. Rb8 {[%clk 0:00:06]}  c2+ {[%clk 0:00:14]} 57. Kc1 {[%clk 0:00:06]}  Ne3 {[%clk 0:00:09]} 58. Be2 {[%clk 0:00:04]}  Nc4 {[%clk 0:00:09]} 59. Bxc4+ {[%clk 0:00:02]}  Rxc4 {[%clk 0:00:09]} 60. Rb6+ {[%clk 0:00:03]}  Kd5 {[%clk 0:00:09]} 61. Rxa6 {[%clk 0:00:03]}  Rb4 {[%clk 0:00:08]} 62. Rd6+ {[%clk 0:00:04]}  Kc4 {[%clk 0:00:08]} 63. Kd2 {[%clk 0:00:03]}  Rb1 {[%clk 0:00:08]} 64. Rd4+ {[%clk 0:00:04]}  Kc5 {[%clk 0:00:08]} 65. Rxe4 {[%clk 0:00:05]}  c1=Q+ {[%clk 0:00:08]} 66. Ke2 {[%clk 0:00:04]}  Qc2+ {[%clk 0:00:08]} 67. Kf3 {[%clk 0:00:01]}  Qxe4+ {[%clk 0:00:08]} 0-1


[Site "https://www.chess.com"]

[Event "Titled Tuesday Blitz August 08 Late 2023"]
[White "Pinto, Daniel"]
[Black "Tristan, Leonardo"]
[WhiteFideId "3303144"]
[BlackFideId "113816"]
[WhiteElo "2443"]
[BlackElo "2761"]
[Result "0-1"]
[Round "11"]
[TimeControl "180+1"]
[Date "2023.08.08"]
[WhiteClock "0:00:00"]
[BlackClock "0:00:49"]
[Board "39"]

1. e4 {[%clk 0:03:00]}  d5 {[%clk 0:03:00]} 2. exd5 {[%clk 0:02:58]}  Qxd5 {[%clk 0:03:01]} 3. Nc3 {[%clk 0:02:58]}  Qa5 {[%clk 0:03:01]} 4. Nf3 {[%clk 0:02:59]}  Nf6 {[%clk 0:03:01]} 5. Bc4 {[%clk 0:02:56]}  Nc6 {[%clk 0:03:00]} 6. O-O {[%clk 0:02:56]}  Bg4 {[%clk 0:02:57]} 7. h3 {[%clk 0:02:54]}  Bh5 {[%clk 0:02:56]} 8. Be2 {[%clk 0:02:54]}  O-O-O {[%clk 0:02:54]} 9. d3 {[%clk 0:02:54]}  Bxf3 {[%clk 0:02:47]} 10. Bxf3 {[%clk 0:02:54]}  Nd4 {[%clk 0:02:47]} 11. Be3 {[%clk 0:02:53]}  Nxf3+ {[%clk 0:02:43]} 12. Qxf3 {[%clk 0:02:52]}  e6 {[%clk 0:02:43]} 13. a3 {[%clk 0:02:49]}  Qf5 {[%clk 0:02:38]} 14. Qxf5 {[%clk 0:02:43]}  exf5 {[%clk 0:02:39]} 15. Bg5 {[%clk 0:02:08]}  Be7 {[%clk 0:02:38]} 16. Rfe1 {[%clk 0:02:08]}  Rhe8 {[%clk 0:02:38]} 17. Re2 {[%clk 0:02:07]}  Ng8 {[%clk 0:02:35]} 18. Rae1 {[%clk 0:02:04]}  Kd7 {[%clk 0:02:26]} 19. Bf4 {[%clk 0:01:52]}  c6 {[%clk 0:02:22]} 20. d4 {[%clk 0:01:47]}  Nf6 {[%clk 0:02:21]} 21. Be5 {[%clk 0:01:39]}  g6 {[%clk 0:02:03]} 22. Na4 {[%clk 0:01:38]}  b6 {[%clk 0:01:53]} 23. c4 {[%clk 0:01:31]}  Ne4 {[%clk 0:01:52]} 24. f3 {[%clk 0:01:30]}  Nd6 {[%clk 0:01:49]} 25. b3 {[%clk 0:01:22]}  Bh4 {[%clk 0:01:23]} 26. g3 {[%clk 0:01:19]}  Be7 {[%clk 0:01:24]} 27. Kf2 {[%clk 0:00:28]}  Bf8 {[%clk 0:01:23]} 28. Nb2 {[%clk 0:00:24]}  Re6 {[%clk 0:01:18]} 29. d5 {[%clk 0:00:23]}  cxd5 {[%clk 0:01:13]} 30. cxd5 {[%clk 0:00:23]}  Ree8 {[%clk 0:01:14]} 31. b4 {[%clk 0:00:23]}  Nb5 {[%clk 0:00:56]} 32. a4 {[%clk 0:00:12]}  Nc7 {[%clk 0:00:56]} 33. Bxc7 {[%clk 0:00:09]}  Rxe2+ {[%clk 0:00:56]} 34. Rxe2 {[%clk 0:00:07]}  Kxc7 {[%clk 0:00:57]} 35. Rc2+ {[%clk 0:00:07]}  Kb7 {[%clk 0:00:57]} 36. Nd3 {[%clk 0:00:03]}  Rxd5 {[%clk 0:00:57]} 37. Ke3 {[%clk 0:00:03]}  Rd7 {[%clk 0:00:53]} 38. f4 {[%clk 0:00:01]}  Bg7 {[%clk 0:00:53]} 39. Rc4 {[%clk 0:00:01]}  a6 {[%clk 0:00:52]} 40. b5 {[%clk 0:00:01]}  axb5 {[%clk 0:00:52]} 41. axb5 {[%clk 0:00:02]}  Rd5 {[%clk 0:00:51]} 42. Rb4 {[%clk 0:00:02]}  Bf8 {[%clk 0:00:49]} 43. Rc4 {[%clk 0:00:02]}  Bc5+ {[%clk 0:00:48]} 44. Nxc5+ {[%clk 0:00:01]}  bxc5 {[%clk 0:00:49]} 45. Kf3 {[%clk 0:00:01]}  Kb6 {[%clk 0:00:49]} 46. Ra4 {[%clk 0:00:02]}  Rd7 {[%clk 0:00:48]} 47. Ra8 {[%clk 0:00:02]}  Kxb5 {[%clk 0:00:48]} 48. Rh8 {[%clk 0:00:03]}  h5 {[%clk 0:00:48]} 49. g4 {[%clk 0:00:03]}  hxg4+ {[%clk 0:00:48]} 50. hxg4 {[%clk 0:00:03]}  fxg4+ {[%clk 0:00:49]} 51. Kxg4 {[%clk 0:00:03]}  Rc7 {[%clk 0:00:49]} 52. Rb8+ {[%clk 0:00:00]}  Ka4 {[%clk 0:00:49]} 0-1


[Site "https://www.chess.com"]

[Event "Titled Tuesday Blitz August 08 Late 2023"]
[White "Weishaeutel, Moritz"]
[Black "Grossboss19"]
[WhiteFideId "12967300"]
[WhiteElo "2645"]
[BlackElo "2536"]
[Result "1-0"]
[Round "11"]
[TimeControl "180+1"]
[Date "2023.08.08"]
[WhiteClock "0:00:08"]
[BlackClock "0:00:07"]
[Board "41"]

1. e4 {[%clk 0:03:00]}  c6 {[%clk 0:02:58]} 2. Nf3 {[%clk 0:02:55]}  d5 {[%clk 0:02:59]} 3. Nc3 {[%clk 0:02:55]}  Nf6 {[%clk 0:02:54]} 4. e5 {[%clk 0:02:54]}  Nfd7 {[%clk 0:02:53]} 5. e6 {[%clk 0:02:53]}  fxe6 {[%clk 0:02:54]} 6. d4 {[%clk 0:02:53]}  g6 {[%clk 0:02:38]} 7. Bd3 {[%clk 0:02:51]}  Bg7 {[%clk 0:02:36]} 8. h4 {[%clk 0:02:51]}  e5 {[%clk 0:02:29]} 9. dxe5 {[%clk 0:02:46]}  Nxe5 {[%clk 0:02:29]} 10. Nxe5 {[%clk 0:02:46]}  Bxe5 {[%clk 0:02:30]} 11. h5 {[%clk 0:02:47]}  Qd6 {[%clk 0:02:14]} 12. Be3 {[%clk 0:02:32]}  Bf5 {[%clk 0:02:08]} 13. Bxf5 {[%clk 0:02:23]}  gxf5 {[%clk 0:02:09]} 14. Qd3 {[%clk 0:02:22]}  d4 {[%clk 0:02:03]} 15. O-O-O {[%clk 0:02:01]}  dxc3 {[%clk 0:01:57]} 16. Qc4 {[%clk 0:01:53]}  cxb2+ {[%clk 0:01:56]} 17. Kb1 {[%clk 0:01:53]}  Qf6 {[%clk 0:01:49]} 18. f4 {[%clk 0:01:49]}  Bd6 {[%clk 0:01:39]} 19. Bd4 {[%clk 0:01:49]}  Qf8 {[%clk 0:01:40]} 20. Bxh8 {[%clk 0:01:47]}  Qxh8 {[%clk 0:01:40]} 21. Rhe1 {[%clk 0:01:32]}  Kd8 {[%clk 0:01:30]} 22. Qb3 {[%clk 0:00:58]}  Kc7 {[%clk 0:01:27]} 23. Qf7 {[%clk 0:00:22]}  Nd7 {[%clk 0:01:18]} 24. Qxf5 {[%clk 0:00:21]}  b6 {[%clk 0:01:12]} 25. Rxe7 {[%clk 0:00:20]}  Rd8 {[%clk 0:01:04]} 26. Rxh7 {[%clk 0:00:16]}  Qc3 {[%clk 0:00:57]} 27. Qd3 {[%clk 0:00:15]}  Qf6 {[%clk 0:00:53]} 28. Qg6 {[%clk 0:00:07]}  Qxf4 {[%clk 0:00:49]} 29. Rh6 {[%clk 0:00:08]}  Ne5 {[%clk 0:00:33]} 30. Qf6 {[%clk 0:00:04]}  Qxf6 {[%clk 0:00:20]} 31. Rxf6 {[%clk 0:00:05]}  Nc4 {[%clk 0:00:20]} 32. a4 {[%clk 0:00:02]}  Rd7 {[%clk 0:00:17]} 33. h6 {[%clk 0:00:02]}  Rh7 {[%clk 0:00:12]} 34. Rg6 {[%clk 0:00:02]}  Be5 {[%clk 0:00:12]} 35. Ka2 {[%clk 0:00:01]}  b5 {[%clk 0:00:10]} 36. axb5 {[%clk 0:00:01]}  cxb5 {[%clk 0:00:11]} 37. Re1 {[%clk 0:00:02]}  a5 {[%clk 0:00:10]} 38. Rxe5 {[%clk 0:00:02]}  Rxh6 {[%clk 0:00:05]} 39. Rxh6 {[%clk 0:00:02]}  Nxe5 {[%clk 0:00:05]} 40. Rh5 {[%clk 0:00:03]}  Nc4 {[%clk 0:00:05]} 41. Rxb5 {[%clk 0:00:03]}  Kc6 {[%clk 0:00:05]} 42. Rb8 {[%clk 0:00:03]}  a4 {[%clk 0:00:06]} 43. Rxb2 {[%clk 0:00:03]}  Nxb2 {[%clk 0:00:06]} 44. Kxb2 {[%clk 0:00:04]}  Kb5 {[%clk 0:00:06]} 45. Ka3 {[%clk 0:00:04]}  Kc4 {[%clk 0:00:07]} 46. Kxa4 {[%clk 0:00:05]}  Kc3 {[%clk 0:00:07]} 47. Kb5 {[%clk 0:00:05]}  Kxc2 {[%clk 0:00:07]} 48. g4 {[%clk 0:00:05]}  Kd3 {[%clk 0:00:08]} 49. g5 {[%clk 0:00:06]}  Ke4 {[%clk 0:00:09]} 50. g6 {[%clk 0:00:07]}  Kf5 {[%clk 0:00:07]} 51. g7 {[%clk 0:00:08]} 1-0


[Site "https://www.chess.com"]